fUST/lending_fUST_20241129
["ID","MTS","AMOUNT","RATE_DAILY","PERIOD"]
[343673079,1732839038202,-200.04079285,0.00026571,2]
[343673080,1732839038211,-500.0,0.00026571,3]
[343673081,1732839038220,-503.55789978,0.00026571,3]
[343673082,1732839038231,-500.0,0.00026571,3]
[343673083,1732839038240,-500.0,0.00026571,3]
[343673084,1732839038250,-500.0,0.00026571,3]
[343673085,1732839038260,-500.0,0.00026571,3]
[343673086,1732839038270,-496.40387134,0.00026571,3]
[343673087,1732839038279,-500.0,0.00026571,3]
[343673088,1732839038289,-500.0,0.00026571,3]
[343673089,1732839038301,-500.0,0.00026571,3]
[343673090,1732839038313,-500.0,0.00026571,3]
[343673091,1732839038322,-500.0,0.00026571,3]
[343673092,1732839038332,-609.74,0.00026571,3]
[343673093,1732839038341,-500.0,0.00026571,2]
[343673094,1732839038350,-500.0,0.00026571,2]
[343673095,1732839038360,-500.0,0.00026571,2]
[343673096,1732839038370,-500.0,0.00026571,2]
[343673097,1732839038379,-522.88342097,0.00026571,2]
[343673098,1732839038388,-625.01502979,0.00026571,2]
[343673099,1732839038397,-500.0,0.00026571,2]
[343673100,1732839038406,-500.0,0.00026571,2]
[343673101,1732839038416,-500.0,0.00026571,2]
[343673102,1732839038425,-647.05924574,0.00026571,2]
[343673103,1732839038434,-500.0,0.00026572,3]
[343673104,1732839038443,-500.0,0.00026572,3]
[343673105,1732839038453,-500.0,0.00026572,3]
[343673106,1732839038462,-229.73150752,0.00026572,3]
[343673107,1732839038471,-500.0,0.00026572,3]
[343673108,1732839038481,-500.0,0.00026572,3]
[343673109,1732839038490,-500.0,0.00026572,3]
[343673110,1732839038499,-321.48831313,0.00026572,3]
[343673111,1732839038508,-503.1300308,0.00026572,3]
[343673112,1732839038517,-539.59020582,0.00026572,3]
[343673113,1732839038527,-500.0,0.00026572,3]
[343673114,1732839038536,-604.02886819,0.00026572,3]
[343673115,1732839038549,-306.38628921,0.00026572,3]
[343673116,1732839038558,-500.0,0.00026572,3]
[343673117,1732839038567,-500.0,0.00026572,3]
[343673118,1732839038577,-502.25480884,0.00026572,3]
[343673119,1732839038586,-500.0,0.00026572,3]
[343673120,1732839038595,-500.0,0.00026572,3]
[343673121,1732839038604,-500.0,0.00026572,3]
[343673122,1732839038613,-330.31738466,0.00026572,3]
[343673123,1732839038623,-500.0,0.00026572,3]
[343673124,1732839038632,-500.0,0.00026572,3]
[343673125,1732839038642,-83.77536146,0.00026572,3]
[343673126,1732839039275,-419.10568738,0.00026572,3]
[343673127,1732839039285,-500.0,0.00026572,3]
[343673128,1732839039294,-168.83781379,0.00026572,3]
[343673133,1732839039875,-331.16218621,0.00026572,3]
[343673134,1732839039884,-500.0,0.00026572,3]
[343673135,1732839039894,-500.0,0.00026572,3]
[343673136,1732839039904,-500.0,0.00026572,3]
[343673137,1732839039914,-500.0,0.00026572,3]
[343673138,1732839039926,-468.83780879,0.00026572,3]
[343673149,1732839043359,-31.16219121,0.00026572,3]
[343673150,1732839043370,-438.08019793,0.00026572,3]
[343673154,1732839045732,-61.91980207,0.00026572,3]
[343673155,1732839045742,-500.0,0.00026572,3]
[343673156,1732839045751,-500.0,0.00026572,3]
[343673157,1732839045760,-500.0,0.00026572,3]
[343673158,1732839045769,-559.50530274,0.00026572,3]
[343673159,1732839045779,-500.0,0.00026572,3]
[343673160,1732839045788,-466.13013842,0.00026572,3]
[343673161,1732839045800,-33.86986158,0.00026572,3]
[343673162,1732839045810,-502.04078436,0.00026572,3]
[343673163,1732839045820,-500.0,0.00026572,3]
[343673164,1732839045830,-500.0,0.00026572,3]
[343673165,1732839045839,-500.0,0.00026572,3]
[343673166,1732839045849,-393.87944231,0.00026572,3]
[343673168,1732839045879,-110.02851871,0.00026572,3]
[343673170,1732839045889,-558.33984864,0.00026572,3]
[343673171,1732839045898,-245.18682805,0.00026572,3]
[343673172,1732839045953,-78.99973644,0.00026572,3]
[343673173,1732839045963,-36.30313874,0.00026572,3]
[343673174,1732839047837,163.0,0.00022,2]
[343673175,1732839084758,-202.9,0.000301,31]
[343673176,1732839084786,-202.9,0.000301,31]
[343673177,1732839084812,-202.9,0.000301,31]
[343673178,1732839084839,-202.9,0.000301,31]
[343673179,1732839084867,-202.9,0.000301,31]
[343673180,1732839084893,-202.9,0.000301,31]
[343673181,1732839084919,-202.9,0.000301,31]
[343673182,1732839084950,-202.9,0.000301,31]
[343673183,1732839084976,-202.9,0.000301,31]
[343673184,1732839085006,-202.9,0.000301,31]
[343673185,1732839085038,-202.9,0.000301,31]
[343673186,1732839085063,-202.9,0.000301,31]
[343673187,1732839085090,-332.041744,0.00030137,120]
[343673188,1732839085134,-202.9,0.000304,31]
[343673189,1732839085159,-202.9,0.000304,31]
[343673190,1732839085184,-202.9,0.000304,31]
[343673191,1732839085208,-202.9,0.000304,31]
[343673192,1732839085233,-202.9,0.000304,31]
[343673193,1732839085257,-202.9,0.000304,31]
[343673194,1732839085405,-202.9,0.000304,31]
[343673195,1732839085432,-202.9,0.000304,31]
[343673196,1732839085458,-202.9,0.000304,31]
[343673197,1732839085482,-202.9,0.000304,31]
[343673198,1732839085509,-202.9,0.000304,31]
[343673199,1732839085535,-202.9,0.000304,31]
[343673200,1732839085565,-202.9,0.000304,31]
[343673201,1732839085594,-202.9,0.000304,31]
[343673202,1732839085620,-202.9,0.000304,31]
[343673203,1732839085646,-202.9,0.000304,31]
[343673204,1732839085673,-202.9,0.000304,31]
[343673205,1732839085700,-202.9,0.000304,31]
[343673206,1732839085726,-202.9,0.000304,31]
[343673207,1732839085752,-202.9,0.000304,31]
[343673208,1732839085779,-202.9,0.000304,31]
[343673209,1732839085805,-202.9,0.000304,31]
[343673210,1732839085831,-202.9,0.000304,31]
[343673211,1732839085860,-202.9,0.000304,31]
[343673212,1732839085886,-202.9,0.000307,31]
[343673213,1732839085912,-202.9,0.000307,31]
[343673214,1732839085938,-202.9,0.000307,31]
[343673215,1732839085967,-202.9,0.000307,31]
[343673216,1732839085999,-202.9,0.000307,31]
[343673217,1732839086024,-202.9,0.000307,31]
[343673218,1732839086051,-202.9,0.000307,31]
[343673219,1732839086081,-202.9,0.000307,31]
[343673220,1732839086109,-202.9,0.000307,31]
[343673221,1732839086137,-202.9,0.000307,31]
[343673222,1732839086162,-202.9,0.000307,31]
[343673223,1732839086188,-202.9,0.000307,31]
[343673224,1732839086213,-202.9,0.000307,31]
[343673225,1732839086240,-202.9,0.000307,31]
[343673226,1732839086267,-202.9,0.000307,31]
[343673227,1732839086294,-202.9,0.000307,31]
[343673228,1732839086320,-202.9,0.000307,31]
[343673229,1732839086350,-202.9,0.000307,31]
[343673230,1732839086379,-202.9,0.000307,31]
[343673231,1732839086405,-202.9,0.000307,31]
[343673232,1732839086432,-202.9,0.000307,31]
[343673233,1732839086458,-202.9,0.000307,31]
[343673234,1732839086486,-202.9,0.000307,31]
[343673235,1732839086511,-202.9,0.000307,31]
[343673236,1732839086535,-8037.2205687,0.00031,120]
[343673237,1732839086561,-202.9,0.00031,31]
[343673238,1732839086588,-202.9,0.00031,31]
[343673239,1732839086615,-202.9,0.00031,31]
[343673240,1732839086642,-202.9,0.00031,31]
[343673241,1732839086673,-202.9,0.00031,31]
[343673242,1732839086701,-202.9,0.00031,31]
[343673243,1732839086727,-202.9,0.00031,31]
[343673244,1732839086753,-202.9,0.00031,31]
[343673245,1732839086779,-202.9,0.00031,31]
[343673246,1732839086804,-202.9,0.00031,31]
[343673247,1732839086830,-202.9,0.00031,31]
[343673248,1732839086858,-202.9,0.00031,31]
[343673249,1732839086883,-202.9,0.00031,31]
[343673250,1732839086909,-202.9,0.00031,31]
[343673251,1732839086936,-202.9,0.00031,31]
[343673252,1732839086964,-202.9,0.00031,31]
[343673253,1732839086992,-202.9,0.00031,31]
[343673254,1732839087019,-202.9,0.00031,31]
[343673255,1732839087044,-202.9,0.00031,31]
[343673256,1732839087069,-202.9,0.00031,31]
[343673257,1732839087097,-202.9,0.00031,31]
[343673258,1732839087124,-202.9,0.00031,31]
[343673259,1732839087150,-202.9,0.00031,31]
[343673260,1732839087176,-202.9,0.00031,31]
[343673261,1732839087199,-278.28947339,0.000312,30]
[343673262,1732839087237,-202.9,0.000313,31]
[343673263,1732839087271,-202.9,0.000313,31]
[343673264,1732839087297,-202.9,0.000313,31]
[343673265,1732839087323,-202.9,0.000313,31]
[343673266,1732839087351,-202.9,0.000313,31]
[343673267,1732839087377,-202.9,0.000313,31]
[343673268,1732839087404,-202.9,0.000313,31]
[343673269,1732839087430,-202.9,0.000313,31]
[343673270,1732839087455,-202.9,0.000313,31]
[343673271,1732839087484,-202.9,0.000313,31]
[343673272,1732839087510,-202.9,0.000313,31]
[343673273,1732839087536,-202.9,0.000313,31]
[343673274,1732839087677,-202.9,0.000313,31]
[343673275,1732839087704,-202.9,0.000313,31]
[343673276,1732839087730,-202.9,0.000313,31]
[343673277,1732839087756,-202.9,0.000313,31]
[343673278,1732839087780,-1000.0,0.00031506,30]
[343673279,1732839087803,-1000.0,0.00031506,30]
[343673280,1732839087826,-161.05909312,0.0003152,120]
[343673281,1732839087852,-164.718,0.0003219,120]
[343673282,1732839087877,-600.0,0.0003351,60]
[343673283,1732839087900,-3578.48097497,0.00034,30]
[343673284,1732839087923,-387.01615125,0.00034,120]
[343673285,1732839087948,-381.796524,0.00034,30]
[343673286,1732839087973,-600.0,0.00034058,60]
[343673287,1732839087997,-70.53188659,0.00034274,120]
[343673288,1732839088022,-164.681,0.0003442,120]
[343673289,1732839088045,-796.57370205,0.00034522,49]
[343673290,1732839088068,-1089.71804107,0.00034522,43]
[343673291,1732839088093,-600.0,0.00034606,60]
[343673292,1732839088117,-5000.0,0.00034683,47]
[343673293,1732839088141,-5000.0,0.00034685,48]
[343673294,1732839088168,-150.0,0.00035,69]
[343673295,1732839088193,-492.42905793,0.00035,60]
[343673296,1732839088216,-200.0,0.00035,120]
[343673297,1732839088243,-1778.21265269,0.00035,120]
[343673298,1732839088267,-600.0,0.00035154,60]
[343673299,1732839088291,-332.041744,0.0003516,120]
[343673300,1732839088314,-1000.0,0.00035616,120]
[343673301,1732839088340,-600.0,0.00035702,60]
[343673302,1732839088363,-209.73695,0.000358,120]
[343673303,1732839088386,-150.0,0.00035808,120]
[343673304,1732839088410,-1000.0,0.0003589,120]
[343673305,1732839088434,-300.0,0.00036,120]
[343673306,1732839088457,-151.4,0.00036,86]
[343673307,1732839088480,-250.0,0.00036,30]
[343673308,1732839088503,-1000.0,0.00036164,120]
[343673309,1732839088526,-600.0,0.0003625,60]
[343673310,1732839088550,-1000.0,0.00036438,120]
[343673311,1732839088575,-1000.0,0.00036712,120]
[343673312,1732839088600,-815.50682527,0.00036986,120]
[343673313,1732839088623,-500.0,0.00037137,120]
[343673314,1732839088647,-500.0,0.00037137,120]
[343673315,1732839088670,-800.0,0.00037137,120]
[343673316,1732839088695,-500.0,0.00037137,120]
[343673317,1732839088719,-500.0,0.00037137,120]
[343673318,1732839088753,-800.0,0.00037137,120]
[343673319,1732839088785,-800.0,0.00037137,120]
[343673320,1732839088816,-498.85750651,0.00037137,120]
[343673321,1732839088845,-800.0,0.00037137,120]
[343673322,1732839088875,-190.0,0.00037137,120]
[343673323,1732839088906,-800.0,0.00037137,120]
[343673324,1732839088937,-800.0,0.00037137,120]
[343673325,1732839088969,-800.0,0.00037137,120]
[343673326,1732839088999,-500.0,0.00037137,120]
[343673327,1732839089033,-800.0,0.00037137,120]
[343673328,1732839089061,-499.3,0.00037137,120]
[343673329,1732839089091,-500.0,0.00037137,120]
[343673330,1732839089121,-800.0,0.00037137,120]
[343673331,1732839089150,-800.0,0.00037137,120]
[343673332,1732839089181,-800.0,0.00037137,120]
[343673333,1732839089209,-500.0,0.00037137,120]
[343673334,1732839089236,-800.0,0.00037137,120]
[343673335,1732839089264,-800.0,0.00037137,120]
[343673336,1732839089291,-800.0,0.00037137,120]
[343673337,1732839089321,-800.0,0.00037137,120]
[343673338,1732839089350,-800.0,0.00037137,120]
[343673339,1732839089380,-800.0,0.00037137,120]
[343673340,1732839089410,-800.0,0.00037137,120]
[343673341,1732839089441,-800.0,0.00037137,120]
[343673342,1732839089471,-800.0,0.00037137,120]
[343673343,1732839089502,-800.0,0.00037137,120]
[343673344,1732839089529,-800.0,0.00037137,120]
[343673345,1732839089557,-800.0,0.00037137,120]
[343673346,1732839089597,-500.0,0.00037137,120]
[343673347,1732839089629,-800.0,0.00037137,120]
[343673348,1732839089659,-855.10650511,0.00037137,120]
[343673349,1732839089686,-800.0,0.00037137,120]
[343673350,1732839089715,-500.0,0.00037137,120]
[343673351,1732839089743,-800.0,0.00037137,120]
[343673352,1732839089772,-967.4,0.00037137,120]
[343673353,1732839089800,-800.0,0.00037137,120]
[343673354,1732839089827,-500.0,0.00037137,120]
[343673355,1732839089858,-800.0,0.00037137,120]
[343673356,1732839089886,-500.0,0.00037137,120]
[343673357,1732839089915,-500.0,0.00037137,120]
[343673358,1732839089944,-916.41729729,0.00037137,120]
[343673359,1732839089974,-1500.0,0.00037137,120]
[343673360,1732839090004,-1500.0,0.00037137,120]
[343673361,1732839090033,-1500.0,0.00037137,120]
[343673362,1732839090190,-1500.0,0.00037137,120]
[343673363,1732839090221,-1500.0,0.00037137,120]
[343673364,1732839090246,-1500.0,0.00037137,120]
[343673365,1732839090271,-1500.0,0.00037137,120]
[343673366,1732839090296,-1500.0,0.00037137,120]
[343673367,1732839090322,-1500.0,0.00037137,120]
[343673368,1732839090354,-1500.0,0.00037137,120]
[343673369,1732839090378,-1500.0,0.00037137,120]
[343673370,1732839090402,-1500.0,0.00037137,120]
[343673371,1732839090428,-1500.0,0.00037137,120]
[343673372,1732839090452,-2700.0,0.00037137,120]
[343673373,1732839090478,-1400.0,0.00037137,120]
[343673374,1732839090502,-1400.0,0.00037137,120]
[343673375,1732839090527,-1400.0,0.00037137,120]
[343673376,1732839090553,-1400.0,0.00037137,120]
[343673377,1732839090577,-1400.0,0.00037137,120]
[343673378,1732839090604,-1400.0,0.00037137,120]
[343673379,1732839090628,-1400.0,0.00037137,120]
[343673380,1732839090653,-1400.0,0.00037137,120]
[343673381,1732839090679,-1400.0,0.00037137,120]
[343673382,1732839090705,-1400.0,0.00037137,120]
[343673383,1732839090729,-1400.0,0.00037137,120]
[343673384,1732839090753,-1400.0,0.00037137,120]
[343673385,1732839090778,-2600.0,0.00037137,120]
[343673386,1732839090805,-600.0,0.00037346,60]
[343673387,1732839090831,-150.0,0.000374,120]
[343673388,1732839090856,-201.0,0.000375,112]
[343673389,1732839090880,-151.0,0.00037507,120]
[343673390,1732839090904,-3118.253448,0.00038,60]
[343673391,1732839090929,-300.0,0.00038,120]
[343673392,1732839090954,-250.0,0.00038,30]
[343673393,1732839090979,-501.83463215,0.00038356,30]
[343673394,1732839091005,-600.0,0.00038442,60]
[343673395,1732839091031,-151.0,0.00038548,120]
[343673396,1732839091054,-186.56015153,0.0003861,120]
[343673397,1732839091077,-1023.85057364,0.000387,120]
[343673398,1732839091102,-1472.0,0.000389,47]
[343673399,1732839091126,-645183.49145188,0.00039,120]
[343673400,1732839091151,-3126.05983353,0.000392,30]
[343673401,1732839091175,-300.0,0.000394,120]
[343673402,1732839091199,-365.0,0.000394,120]
[343673403,1732839091224,-150.0,0.0003952,120]
[343673404,1732839091249,-600.0,0.00039538,60]
[343673405,1732839091275,-1630.90757654,0.0003988,30]
[343673406,1732839091304,-3000.0,0.000399,120]
[343673407,1732839091333,-796.30157394,0.0004,120]
[343673408,1732839091372,-300.0,0.0004,120]
[343673409,1732839091401,-13794.0,0.0004,120]
[343673410,1732839091428,-2000.0,0.0004,60]
[343673411,1732839091454,-1517.4978956,0.0004,60]
[343673412,1732839091480,-802.2679045,0.0004,30]
[343673413,1732839091508,-100009.11321713,0.0004,120]
[343673414,1732839091534,-200.0,0.0004,120]
[343673415,1732839091559,-33349.7771706,0.0004,30]
[343673416,1732839091584,-49081.54887302,0.0004,30]
[343673417,1732839098648,-50918.45112698,0.0004,30]
[343673418,1732839098674,-250.0,0.0004,30]
[343673419,1732839098699,-332.041744,0.00040183,120]
[343673420,1732839098723,-600.0,0.00040634,60]
[343673421,1732839098748,-1000.0,0.00040999,120]
[343673422,1732839098771,-2078.51362055,0.00041,120]
[343673423,1732839098796,-300.0,0.00041,120]
[343673424,1732839098820,-25019.25207564,0.00041,30]
[343673425,1732839098844,-152.0,0.00041041,31]
[343673426,1732839098870,-152.0,0.00041041,31]
[343673427,1732839098894,-1000.0,0.00041095,120]
[343673428,1732839098918,-1007.25322577,0.00041095,120]
[343673429,1732839098946,-1000.0,0.00041095,120]
[343673430,1732839098970,-1000.0,0.00041095,120]
[343673431,1732839098996,-1000.0,0.00041095,120]
[343673432,1732839099023,-1000.0,0.00041095,120]
[343673433,1732839099051,-1000.0,0.00041095,120]
[343673434,1732839099076,-1000.0,0.00041095,120]
[343673435,1732839099104,-1000.0,0.00041095,120]
[343673436,1732839099128,-1000.0,0.00041095,120]
[343673437,1732839099152,-1000.0,0.00041095,120]
[343673438,1732839099180,-1000.0,0.00041095,120]
[343673439,1732839099204,-1000.0,0.00041095,120]
[343673440,1732839099229,-1000.0,0.00041095,120]
[343673441,1732839099255,-1000.0,0.00041095,120]
[343673442,1732839099282,-1000.0,0.00041095,120]
[343673443,1732839099307,-1048.37406027,0.00041095,120]
[343673444,1732839099330,-1653.03,0.00041096,30]
[343673445,1732839121531,163.811262,0.00013973,2]
[343673446,1732839121745,163.811262,0.00020447,2]
[343673456,1732839252530,37.7,0.0003,120]
[343673466,1732839826408,179.718188,0.00013973,2]
[343673467,1732839826576,179.718188,0.00020447,2]
[343673468,1732839952193,-1057.42568009,0.00023969,2]
[343673469,1732839952216,-300.0,0.00026114,2]
[343673470,1732839952239,-425.0,0.00026167,2]
[343673471,1732839952264,-749.25589344,0.00026168,2]
[343673472,1732840025111,-1299.73111246,0.00024953,2]
[343673473,1732840031098,-2724.3789875,0.00024953,2]
[343673474,1732840031120,-300.0,0.00025999,2]
[343673475,1732840031143,-5241.56656274,0.00026,30]
[343673476,1732840040189,-540.19852643,0.00026,30]
[343673477,1732840044130,-1273.21766845,0.00026,30]
[343673479,1732840093581,6500.62954253,0.00021,2]
[343673480,1732840122402,32873.90999632,0.00020377,2]
[343673481,1732840123514,945.82372663,0.00025,120]
[343673482,1732840123938,101069.30363969,0.0001999,2]
[343673483,1732840125113,25668.08500454,0.00022,2]
[343673486,1732840127785,148010.90958209,0.000109,2]
[343673488,1732840128481,60854.55125775,0.0001,30]
[343673492,1732840154227,-338.89241829,0.00023,2]
[343673493,1732840170092,-1156.70928752,0.0002509,2]
[343673494,1732840170114,-880.46710776,0.00025878,2]
[343673519,1732840232096,-319.53289324,0.00025878,2]
[343673520,1732840232107,-300.0,0.00025999,2]
[343673521,1732840232117,-125.37706803,0.00025999,2]
[343673542,1732840239919,-174.62293197,0.00025999,2]
[343673543,1732840239928,-1174.89229103,0.00026,30]
[343673556,1732840243480,-2051.93964695,0.00026,30]
[343673557,1732840243536,-5699.78944268,0.00026,30]
[343673558,1732840243546,-2570.04858077,0.00026,2]
[343673559,1732840243556,-99.91252977,0.00026,30]
[343673576,1732840245944,-918.43839447,0.00026,30]
[343673577,1732840245956,-1057.42568009,0.00026,30]
[343673578,1732840245972,-1177.03706291,0.00026,30]
[343673579,1732840245982,-629.40681578,0.00026609,2]
[343673583,1732840452299,177.892828,0.00013973,2]
[343673584,1732840452538,177.892828,0.00020447,2]
[343673588,1732840879571,151.0,0.00025999,60]
[343673589,1732841146123,-178.268498,0.00025915,2]
[343673590,1732841146144,-263.0,0.00026,2]
[343673591,1732841146164,-200.0,0.00026069,2]
[343673592,1732841146184,-1497.787528,0.00026135,2]
[343673593,1732841248130,-1496.3328869,0.00026135,2]
[343673594,1732841248152,-88.53718725,0.0002614,2]
[343673595,1732841250132,-70.99679375,0.0002614,2]
[343673596,1732841250155,-300.0,0.00026344,2]
[343673597,1732841250177,-300.0,0.00026344,2]
[343673598,1732841250200,-151.0,0.00026548,5]
[343673599,1732841250222,-215.5903176,0.00026555,2]
[343673600,1732841250243,-967.73415051,0.00026558,2]
[343673601,1732841251107,-2121.26584949,0.00026558,2]
[343673602,1732841251129,-8491.48850122,0.00026559,2]
[343673603,1732841251151,-156.307425,0.00026704,2]
[343673604,1732841251173,-172.095175,0.00026704,2]
[343673605,1732841251193,-154.418349,0.00026704,2]
[343673606,1732841251214,-177.892828,0.00026921,2]
[343673607,1732841251237,-151.0,0.0002696,5]
[343673608,1732841251258,-154.418349,0.0002715,2]
[343673609,1732841251281,-151.0,0.00027373,6]
[343673610,1732841251302,-154.418349,0.00027595,2]
[343673611,1732841251323,-151.0,0.00027785,6]
[343673612,1732841251346,-2320.15294027,0.00027922,2]
[343673613,1732841251368,-200.04079286,0.00028,2]
[343673614,1732841251389,-331.14673876,0.00028,30]
[343673634,1732841435918,-797.52138384,0.000279,2]
[343673635,1732841435930,-279.0,0.00027999,2]
[343673636,1732841435941,-300.0,0.00027999,2]
[343673637,1732841435952,-4372.60823717,0.00028,30]
[343673638,1732841435965,-2319.30986767,0.00028,30]
[343673642,1732841438455,-2489.515304,0.00028,30]
[343673643,1732841438617,-4859.56412093,0.00028,30]
[343673651,1732841440133,-1309.499991,0.00028,30]
[343673660,1732841443304,-237.67289178,0.00028,30]
[343673661,1732841443324,-2771.95900571,0.00028,30]
[343673665,1732841526793,210.0,0.00022,6]
[343673673,1732841816954,175.478161,0.00013973,2]
[343673674,1732841817157,175.478161,0.00020447,2]
[343673677,1732842024181,1169.27083333,0.00022,2]
[343673679,1732842425772,171.019093,0.00013973,2]
[343673680,1732842428134,-1108.88089757,0.000228,2]
[343673681,1732842445091,-60.38993576,0.000228,2]
[343673682,1732842445111,-1002.21705192,0.0002313,2]
[343673684,1732842565086,-3997.78294808,0.0002313,2]
[343673685,1732842565107,-300.0,0.00023363,2]
[343673686,1732842565133,-300.0,0.00023363,2]
[343673687,1732842565153,-2055.78901993,0.00023363,2]
[343673710,1732842632510,-1318.64095654,0.00022898,2]
[343673711,1732842632520,-2027.12661646,0.00023129,2]
[343673712,1732842632532,-556.86521642,0.00023129,2]
[343673713,1732842632557,-335.5000105,0.00023129,2]
[343673714,1732842632568,-633.90707799,0.00023129,2]
[343673715,1732842632648,-1446.60107863,0.00023129,2]
[343673716,1732842632658,-228.8879704,0.000232,2]
[343673722,1732842638438,-940.38286293,0.000232,2]
[343673723,1732842638448,-3809.33498479,0.00024097,2]
[343673724,1732842638460,-3511.16182921,0.00024097,2]
[343673725,1732842638469,-208.158781,0.000246,2]
[343673726,1732842638479,-178.268498,0.00025015,2]
[343673727,1732842638488,-7662.41,0.00025114,10]
[343673728,1732842638497,-1125.18,0.00025114,3]
[343673729,1732842638507,-500.0,0.00025123,2]
[343673730,1732842638516,-492.23278781,0.00025123,2]
[343673731,1732842638526,-475.39497887,0.00025123,2]
[343673732,1732842638536,-478.1561458,0.00025123,2]
[343673733,1732842638546,-500.0,0.00025123,2]
[343673734,1732842638556,-500.0,0.00025123,2]
[343673735,1732842638566,-199.55615372,0.00025123,2]
[343673737,1732842638576,-550.10090049,0.00025123,2]
[343673738,1732842638585,-500.0,0.00025123,2]
[343673740,1732842638595,-500.0,0.00025123,2]
[343673742,1732842638604,-500.0,0.00025123,2]
[343673743,1732842638613,-500.0,0.00025123,2]
[343673744,1732842638623,-500.0,0.00025123,2]
[343673745,1732842638633,-500.0,0.00025123,2]
[343673746,1732842638643,-500.0,0.00025123,2]
[343673747,1732842638652,-500.0,0.00025123,2]
[343673748,1732842638662,-191.40070358,0.00025123,2]
[343673749,1732842638673,-500.0,0.00025123,2]
[343673750,1732842638683,-70.13882302,0.00025123,2]
[343673753,1732842640437,-1511.88021561,0.00022968,2]
[343673754,1732842640449,-429.86117698,0.00025123,2]
[343673755,1732842640460,-500.0,0.00025123,2]
[343673756,1732842640469,-208.18632014,0.00025123,2]
[343673757,1732842640479,-186.87490753,0.00025123,2]
[343673758,1732842640489,-500.0,0.00025123,2]
[343673759,1732842640498,-500.0,0.00025123,2]
[343673760,1732842640508,-500.0,0.00025123,2]
[343673761,1732842640530,-500.0,0.00025123,2]
[343673762,1732842640542,-500.0,0.00025123,2]
[343673763,1732842640552,-500.0,0.00025123,2]
[343673764,1732842640563,-500.0,0.00025123,2]
[343673765,1732842640573,-500.0,0.00025123,2]
[343673766,1732842640583,-500.0,0.00025123,2]
[343673767,1732842640595,-500.0,0.00025123,2]
[343673768,1732842640604,-500.0,0.00025123,2]
[343673769,1732842640614,-500.0,0.00025123,2]
[343673770,1732842640623,-500.0,0.00025123,2]
[343673771,1732842640633,-500.0,0.00025123,2]
[343673772,1732842640643,-500.0,0.00025123,2]
[343673773,1732842640653,-500.0,0.00025123,2]
[343673774,1732842640663,-500.0,0.00025123,2]
[343673775,1732842640672,-500.0,0.00025123,2]
[343673776,1732842640688,-500.0,0.00025123,2]
[343673777,1732842640698,-500.0,0.00025123,2]
[343673778,1732842640708,-500.0,0.00025123,2]
[343673779,1732842640719,-500.0,0.00025123,2]
[343673780,1732842640729,-500.0,0.00025123,2]
[343673781,1732842640738,-500.0,0.00025123,2]
[343673782,1732842640750,-500.0,0.00025123,2]
[343673783,1732842640759,-500.0,0.00025123,2]